bitfinex/quotes_ETHUSD_20241001
["timestamp","ask_amount","ask_price","bid_price","bid_amount"]
[1727794282916,3.91323,2555.5,2554.9,1.6188]
[1727794283112,3.91259,2555.9,2554.9,1.6188]
[1727794283316,3.91368,2555.2,2554.7,0.1240303]
[1727794283553,0.67123749,2555.8,2554.7,0.1240303]
[1727794283554,3.91309,2555.6,2554.7,0.1240303]
[1727794283855,1.6032,2555.5,2554.7,0.1240303]
[1727794284020,3.91382,2555.1,2554.7,0.1240303]
[1727794284214,3.91382,2555.1,2554.0,3.91536]
[1727794284215,5.07713371,2555.0,2553.8,0.88130438]
[1727794284467,1.6215,2555.2,2553.4,0.00080391]
[1727794284468,3.91603,2553.7,2553.4,0.00080391]
[1727794284670,1.6215,2553.8,2553.4,0.00080391]
[1727794284909,3.91613,2553.6,2553.4,0.00080391]
[1727794285109,5.53769,2553.5,2553.4,0.00080391]
[1727794285270,3.91726,2552.8,2552.7,3.52530992]
[1727794285471,3.91725,2552.9,2552.7,3.52530992]
[1727794285667,5.45216,2552.8,2552.7,2.82042006]
[1727794286207,5.45216,2552.8,2552.7,3.01305291]
[1727794286208,6.00216,2552.8,2552.7,3.01305291]
[1727794286506,3.91834,2552.1,2551.0,3.91991]
[1727794286724,3.91834,2552.1,2552.0,1.28700318]
[1727794286873,3.91778,2552.5,2552.0,1.28700318]
[1727794287069,5.07713371,2553.3,2552.0,1.28700318]
[1727794287070,1.5028,2553.2,2552.0,1.28700318]
[1727794287295,3.917,2553.0,2552.0,1.28700318]
[1727794287496,3.917,2553.0,2552.0,5.20537318]
[1727794287882,3.91743,2552.7,2552.0,1.28700318]
[1727794288183,1.4924,2552.8,2552.0,0.18847742]
[1727794288386,3.91758,2552.6,2552.0,0.18847742]
[1727794288679,5.07713371,2552.5,2552.0,0.18847742]
[1727794288879,8.99497371,2552.5,2552.0,0.18847742]
[1727794289123,7.83631,2552.3,2552.0,0.18847742]
[1727794289325,5.41074,2552.1,2552.0,0.18847742]
[1727794289532,1.4924,2552.1,2552.0,0.18847742]
[1727794289820,3.91713,2552.9,2552.0,4.10684742]
[1727794289977,5.48845,2553.0,2552.1,3.91828]
[1727794290175,1.5714,2553.0,2552.1,0.18308763]
[1727794290376,5.07713371,2552.9,2552.1,0.18308763]
[1727794290596,3.91761,2552.6,2552.1,0.18308763]
[1727794291111,1.5714,2553.0,2552.4,3.91783]
[1727794291312,1.5714,2553.0,2552.1,1.79648763]
[1727794291313,3.91721,2552.9,2552.1,5.71470763]
[1727794291817,3.91742,2552.7,2552.1,0.18308763]
[1727794292024,3.91774,2552.5,2552.1,0.18308763]
[1727794292316,3.91748,2552.7,2552.1,0.18308763]
[1727794292479,5.07713371,2552.9,2552.1,0.18308763]
[1727794292673,3.9179,2552.4,2552.1,0.18308763]
[1727794292871,7.83481,2552.8,2552.1,0.18308763]
[1727794293074,5.48838,2553.0,2552.1,0.18308763]
[1727794293303,5.48838,2553.0,2552.1,4.10127763]
[1727794293304,9.40545,2553.0,2552.1,4.10127763]
[1727794293523,3.91642,2553.4,2552.6,3.91754]
[1727794293676,5.07713371,2553.7,2552.2,1.4918]
[1727794293876,5.07713371,2553.7,2552.3,3.91801]
[1727794293877,0.0050668,2552.4,2552.3,3.91801]
[1727794294123,0.0050668,2552.4,2552.1,0.18308763]
[1727794294431,0.0050668,2552.4,2552.2,3.91804]
[1727794294825,0.0050668,2552.4,2552.1,0.18308763]
[1727794295819,0.0050668,2552.4,2552.2,3.91818]
[1727794296026,0.0050668,2552.4,2552.2,4.43325121]
[1727794296333,3.91606,2553.6,2552.9,3.917]
[1727794296482,3.91659,2553.3,2552.7,3.91739]
[1727794296823,3.91692,2553.1,2552.3,3.91798]
[1727794296990,3.91692,2553.1,2552.1,0.18308763]
[1727794297188,1.4577,2553.3,2552.6,3.91753]
[1727794297389,3.91411,2554.9,2552.6,3.91753]
[1727794297390,3.91614,2553.6,2553.0,3.91682]
[1727794297715,6.66953371,2553.8,2552.6,0.16511387]
[1727794297716,6.66953371,2553.8,2552.8,3.91725]
[1727794297925,3.91438,2554.7,2552.8,3.91725]
[1727794297926,5.50686,2554.7,2554.1,3.91526]
[1727794298080,3.91382,2555.1,2554.3,3.91484]
[1727794298425,3.91325,2555.5,2554.9,3.91394]
[1727794298717,1.5818,2556.1,2554.4,1.5409]
[1727794298718,5.49415,2556.1,2555.1,3.9136]
[1727794298928,3.91194,2556.3,2555.6,3.91294]
[1727794299132,3.91207,2556.2,2555.4,3.91328]
[1727794299282,3.91133,2556.7,2555.5,1.5737]
[1727794299498,0.40939127,2557.0,2555.5,1.5737]
[1727794299499,0.40939127,2557.0,2556.1,3.91208]
[1727794299698,3.91103,2556.9,2556.1,3.91208]
[1727794300212,5.49247,2557.2,2556.1,3.91208]
[1727794300406,3.911,2556.9,2556.1,4.94218085]
[1727794300597,3.91143,2556.7,2556.1,1.02998085]
[1727794301032,3.91156,2556.6,2556.1,1.02998085]
[1727794301240,3.91143,2556.7,2556.1,1.02998085]
[1727794301542,3.91136,2556.7,2556.1,1.02998085]
[1727794301745,5.07713371,2557.0,2556.1,1.02998085]
[1727794301899,1.5818,2557.2,2556.1,1.02998085]
[1727794301900,3.91205,2556.2,2556.1,1.02998085]
[1727794302406,10.45438371,2556.2,2556.1,0.52806633]
[1727794303038,10.45438371,2556.2,2556.1,0.16502072]
[1727794303286,13.45438371,2556.2,2556.1,0.16502072]
[1727794303405,14.00438371,2556.2,2556.1,0.16502072]
[1727794303603,14.13018371,2556.2,2556.1,0.16502072]
[1727794304315,13.58018371,2556.2,2556.1,0.16502072]
[1727794304718,1.5132,2555.3,2554.7,0.1258163]
[1727794305046,3.91373,2555.2,2554.7,0.1258163]
[1727794305214,1.5132,2555.3,2554.7,0.1258163]
[1727794305403,3.9142,2554.8,2554.7,0.1258163]
[1727794305602,3.91384,2555.1,2554.7,0.1258163]
[1727794305820,5.42673,2555.3,2554.7,0.1258163]
[1727794305821,3.91359,2555.2,2554.7,0.1258163]
[1727794306017,3.91388,2555.1,2554.7,0.1258163]
[1727794306416,1.5132,2555.3,2554.7,0.1258163]
[1727794306417,5.42666,2555.3,2554.7,0.1258163]
[1727794306622,3.91405,2554.9,2554.7,0.1258163]
[1727794306946,5.5233,2554.8,2554.7,0.1258163]
[1727794309110,5.5233,2554.8,2552.7,1.4888]
[1727794309111,3.91635,2553.4,2552.7,1.4888]
[1727794309450,1.6068,2553.8,2552.7,1.4888]
[1727794309451,3.91682,2553.1,2552.8,0.08953753]
[1727794309609,3.91651,2553.3,2552.8,0.08953753]
[1727794309951,3.91645,2553.4,2552.8,0.08953753]
[1727794310246,5.07713371,2553.7,2552.8,0.08953753]
[1727794310551,3.91662,2553.3,2552.8,0.08953753]
[1727794310721,3.91622,2553.5,2552.8,0.08953753]
[1727794311553,1.4613,2554.2,2552.8,0.08953753]
[1727794311554,8.99307371,2553.7,2552.8,0.08953753]
[1727794311756,3.91628,2553.5,2552.8,0.08953753]
[1727794312056,3.91628,2553.5,2552.8,3.91724]
[1727794312218,3.91628,2553.5,2552.8,8.766759]
[1727794312417,5.07713371,2554.1,2552.8,8.766759]
[1727794312418,3.91578,2553.8,2552.8,0.932349]
[1727794312765,5.07713371,2554.1,2552.8,3.91726]
[1727794312766,3.91639,2553.4,2552.8,3.91726]
[1727794312910,3.9165,2553.3,2552.8,3.91726]
[1727794313110,3.9162,2553.5,2552.8,3.91726]
[1727794313408,3.9162,2553.5,2552.8,3.91717]
[1727794313717,3.91638,2553.4,2552.8,3.91717]
[1727794314235,3.9162,2553.5,2552.8,3.91715]
[1727794314439,3.91638,2553.4,2552.8,4.60152709]
[1727794314629,3.91647,2553.4,2552.8,3.91715]
[1727794314847,3.91647,2553.4,2552.8,7.83433]
[1727794315052,3.91647,2553.4,2552.8,3.91715]
[1727794315258,3.91628,2553.5,2552.8,3.91723]
[1727794315409,3.91653,2553.3,2552.8,3.91723]
[1727794315613,3.91628,2553.5,2552.8,0.932352]
[1727794315614,7.83259,2553.5,2552.8,0.932352]
[1727794315843,3.91628,2553.5,2552.9,3.91696]
[1727794316019,3.91628,2553.5,2552.9,7.83399]
[1727794316215,3.91628,2553.5,2552.9,3.91696]
[1727794316551,3.91598,2553.7,2553.1,3.91666]
[1727794316762,5.07713371,2554.5,2553.3,1.6044]
[1727794317060,3.91551,2554.0,2553.5,3.91615]
[1727794317250,3.91537,2554.1,2553.6,3.91603]
[1727794317564,3.91516,2554.2,2553.5,3.91605]
[1727794317729,3.9154,2554.1,2553.5,3.91613]
[1727794318061,3.91514,2554.2,2553.6,3.91593]
[1727794318456,3.91601,2553.7,2553.3,1.6044]
[1727794318647,3.91599,2553.7,2553.3,1.6044]
[1727794318863,3.9165,2553.4,2553.0,1.5149]
[1727794319035,3.91649,2553.4,2553.0,1.5149]
[1727794319235,3.91654,2553.3,2553.0,1.5149]
[1727794319549,3.91622,2553.5,2553.0,1.5149]
[1727794319734,3.91611,2553.6,2553.0,1.5149]
[1727794319936,3.9156,2553.9,2553.0,1.5149]
[1727794320266,8.99244371,2554.1,2553.0,1.5149]
[1727794320267,3.9165,2553.3,2553.0,1.5149]
[1727794320581,1.5385,2554.2,2553.0,1.5149]
[1727794320877,3.9163,2553.5,2553.0,1.5149]
[1727794321089,3.91653,2553.3,2553.0,1.5149]
[1727794321239,5.07713371,2553.3,2552.5,1.497]
[1727794321572,3.91673,2553.2,2552.5,3.91763]
[1727794321869,3.91673,2553.2,2552.4,0.1048625]
[1727794321870,6.61493371,2553.7,2552.4,0.1048625]
[1727794322158,3.91742,2552.7,2552.4,0.1048625]
[1727794322316,8.99485371,2552.5,2552.4,0.1048625]
[1727794322461,8.99485371,2552.5,2550.3,1.544]
[1727794322462,3.91834,2552.1,2550.5,3.92071]
[1727794322666,11.18577371,2552.1,2550.3,1.544]
[1727794322863,3.91981,2551.2,2550.3,1.544]
[1727794323099,3.91981,2551.2,2550.0,6.795415]
[1727794323100,5.07713371,2551.7,2550.4,0.07840938]
[1727794323263,3.91966,2551.3,2550.1,0.35639531]
[1727794323463,3.91966,2551.3,2550.0,6.795415]
[1727794323464,3.9206,2550.7,2550.0,10.716875]
[1727794323671,5.07713371,2550.5,2550.0,6.795415]
[1727794323867,1.5603,2550.6,2550.0,6.795415]
[1727794324163,3.92141,2550.1,2550.0,6.795415]
[1727794324409,5.07713371,2550.6,2550.0,6.795415]
[1727794324698,3.92141,2550.1,2550.0,6.795415]
[1727794325408,4.47156,2550.0,2549.9,0.005]
[1727794325697,4.47156,2550.0,2549.3,0.1509463]
[1727794325698,3.9221,2549.7,2549.3,0.1509463]
[1727794325873,3.92249,2549.4,2549.3,0.1509463]
[1727794326072,4.47249,2549.4,2549.3,0.1509463]
[1727794326322,3.92295,2549.1,2549.0,12.0]
[1727794326459,9.55008371,2549.1,2549.0,12.0]
[1727794326658,3.92278,2549.3,2549.0,12.0]
[1727794326858,3.92158,2550.0,2549.1,3.92287]
[1727794327108,3.92125,2550.3,2549.6,1.6263]
[1727794327309,3.92203,2549.7,2549.0,12.0]
[1727794327512,3.92203,2549.7,2549.1,3.92293]
[1727794327692,3.922,2549.8,2549.0,15.923]
[1727794327899,3.922,2549.8,2549.1,3.92284]
[1727794328072,3.9216,2550.0,2549.1,3.92284]
[1727794328273,5.07713371,2550.2,2549.0,12.0]
[1727794328487,3.92208,2549.7,2549.0,12.0]
[1727794328715,3.92208,2549.7,2549.1,1.5356]
[1727794328876,8.44282,2550.6,2549.1,1.5356]
[1727794328877,3.9218,2549.9,2549.1,1.5356]
[1727794329217,3.92146,2550.1,2549.2,3.92276]
[1727794329364,3.92146,2550.1,2549.1,1.5356]
[1727794329570,3.92199,2549.8,2549.1,1.5356]
[1727794330008,3.92206,2549.7,2549.1,1.5356]
[1727794330220,3.92263,2549.4,2549.0,12.0]
[1727794330506,3.92295,2549.1,2549.0,12.0]
[1727794331217,12.92269371,2549.3,2549.0,12.0]
[1727794331218,3.92277,2549.3,2549.0,12.0]
[1727794331507,3.92295,2549.1,2549.0,12.0]
[1727794332188,6.06395,2549.1,2549.0,12.0]
[1727794332511,5.51395,2549.1,2549.0,12.0]
[1727794332667,6.06395,2549.1,2549.0,12.0]
[1727794333202,5.51395,2549.1,2549.0,12.0]
[1727794334085,3.91795,2549.1,2549.0,12.0]
[1727794334283,3.92295,2549.1,2549.0,12.0]
[1727794334520,1.525,2549.6,2549.0,12.0]
[1727794334521,3.92257,2549.4,2549.0,12.0]
[1727794334677,5.07713371,2549.7,2549.0,12.0]
[1727794335021,3.92223,2549.6,2549.0,12.0]
[1727794335204,3.92259,2549.4,2549.0,12.0]
[1727794335799,3.92106,2550.4,2549.0,12.0]
[1727794335800,3.92166,2550.0,2549.4,3.92236]
[1727794336010,3.92166,2550.0,2549.2,3.92278]
[1727794336011,3.92188,2549.8,2549.2,3.92278]
[1727794336216,3.92227,2549.6,2549.1,1.6362]
[1727794336513,5.07713371,2550.2,2549.3,1.5998]
[1727794336700,1.5544,2550.7,2549.0,12.0]
[1727794336701,3.92264,2549.4,2549.0,12.0]
[1727794336906,5.07713371,2549.8,2549.0,12.0]
[1727794337080,3.9228,2549.2,2549.0,12.0]
[1727794337277,3.92065,2550.6,2549.0,12.0]
[1727794337498,3.92217,2549.7,2549.0,15.92308]
[1727794337701,8.99813371,2550.4,2549.0,15.92308]
[1727794337905,3.92213,2549.7,2549.0,15.923]
[1727794338213,3.92146,2550.1,2549.3,1.6192]
[1727794338428,3.92205,2549.7,2549.0,12.0]
[1727794338625,3.92277,2549.3,2549.0,12.0]
[1727794338775,3.92229,2549.6,2549.0,12.0]
[1727794338980,1.5017,2549.9,2549.0,12.0]
[1727794338981,3.9228,2549.2,2549.0,12.0]
[1727794339386,3.92295,2549.1,2549.0,12.0]
[1727794339621,3.92254,2549.4,2549.0,12.0]
[1727794339913,3.92295,2549.1,2549.0,12.0]
[1727794340478,3.9228,2549.2,2549.0,12.0]
[1727794340677,5.07713371,2550.0,2549.0,13.6467]
[1727794340905,7.84557,2549.3,2549.0,13.6467]
[1727794341106,3.92288,2549.2,2549.0,13.6467]
[1727794341358,3.92295,2549.1,2549.0,12.0]
[1727794342448,3.92189,2549.8,2549.1,1.649]
[1727794342449,3.92193,2549.8,2549.1,1.649]
[1727794342681,3.92161,2550.0,2549.1,1.649]
[1727794342682,3.92235,2549.5,2549.1,1.649]
[1727794342944,3.92235,2549.5,2549.0,12.0]
[1727794342945,3.92295,2549.1,2549.0,12.0]
[1727794343850,3.92289,2549.2,2549.0,12.0]
[1727794344158,1.554,2549.5,2549.0,12.0]
[1727794344159,3.92295,2549.1,2549.0,12.0]
[1727794344915,3.92281,2549.2,2549.0,12.0]
[1727794345110,3.92228,2549.6,2549.0,12.0]
[1727794345416,5.07713371,2550.4,2549.0,12.0]
[1727794345417,3.92196,2549.8,2549.1,6.1355962]
[1727794345617,3.92143,2550.1,2549.1,2.2127962]
[1727794345819,3.92143,2550.1,2549.6,3.92217]
[1727794346033,3.92143,2550.1,2549.5,3.92221]
[1727794346236,6.68463371,2550.8,2549.1,2.2127962]
[1727794346550,7.84212,2550.4,2549.9,5.51839]
[1727794346710,7.84212,2550.4,2549.9,1.5968]
[1727794346711,3.92104,2550.4,2549.9,1.5968]
[1727794347052,3.92002,2551.1,2549.9,1.5968]
[1727794347239,7.84238,2550.3,2549.9,1.5968]
[1727794347433,3.92002,2551.1,2549.9,1.5968]
[1727794347434,3.92133,2550.2,2549.9,1.5968]
[1727794347613,3.92064,2550.6,2549.9,1.5968]
[1727794347956,6.68463371,2551.2,2549.1,1.6296]
[1727794347957,3.0,2550.3,2549.1,1.6296]
[1727794348171,3.92257,2549.4,2549.1,1.6296]
[1727794348488,3.9222,2549.6,2549.1,1.6296]
[1727794348673,1.60843088,2551.5,2549.5,5.07713371]
[1727794348827,1.60843088,2551.5,2549.4,3.92247]
[1727794348828,3.92126,2550.2,2549.4,3.92247]
[1727794349166,3.92126,2550.2,2549.2,3.92279]
[1727794349167,3.92127,2550.2,2549.2,7.84547]
[1727794349367,3.92155,2550.1,2549.1,5.55253]
[1727794349554,3.92126,2550.2,2549.2,3.92277]
[1727794349758,3.92126,2550.2,2549.1,5.55253]
[1727794350069,5.07713371,2550.3,2549.1,1.6296]
[1727794350254,3.92191,2549.8,2549.1,1.6296]
[1727794350764,3.92185,2549.9,2549.1,1.6296]
[1727794350926,3.92193,2549.8,2549.1,1.6296]
[1727794351269,3.92188,2549.8,2549.1,1.6296]
[1727794351968,3.92249,2549.4,2548.7,1.4749]
[1727794353080,3.92249,2549.4,2548.3,1.49920392]
[1727794353081,3.92295,2549.1,2548.3,1.49920392]
[1727794353981,7.47295,2549.1,2549.0,0.37644467]
[1727794354149,0.55,2548.2,2546.3,1.4984]
[1727794354463,0.55,2548.2,2546.5,3.9269]
[1727794354464,5.07713371,2548.1,2546.5,3.9269]
[1727794354665,1.5858,2547.4,2546.2,0.1509463]
[1727794354868,1.5858,2547.4,2546.7,3.92652]
[1727794355093,3.92522,2547.7,2546.8,3.92648]
[1727794355231,3.92522,2547.7,2546.2,4.51839383]
[1727794355232,1.498,2548.4,2547.0,3.92604]
[1727794355430,5.07713371,2548.9,2547.4,3.92547]
[1727794355431,5.4218,2548.6,2547.4,3.92547]
[1727794355631,3.92452,2548.1,2547.1,4.469744]
[1727794355849,3.9248,2547.9,2546.9,1.5114]
[1727794356060,5.07713371,2548.4,2545.9,4.98113305]
[1727794356061,9.00261371,2547.5,2546.1,1.562]
[1727794356294,3.92514,2547.7,2546.7,3.92657]
[1727794356492,1.5829,2547.8,2546.1,5.4895]
[1727794356493,3.92617,2547.1,2546.1,1.562]
[1727794356786,3.92617,2547.1,2545.9,1.05326305]
[1727794356787,5.43923,2547.0,2545.9,1.05326305]
[1727794356944,1.513,2547.0,2545.9,1.05326305]
[1727794357144,5.07713371,2546.7,2545.9,1.05326305]
[1727794357344,3.92708,2546.5,2545.9,1.05326305]
[1727794357554,3.92708,2546.5,2544.0,0.005]
[1727794357555,3.92958,2544.8,2544.0,0.005]
[1727794357987,0.1397,2544.9,2544.0,0.005]
[1727794358192,3.92958,2544.8,2544.0,0.005]
[1727794358361,5.07713371,2544.9,2544.0,0.005]
[1727794358560,3.93005,2544.5,2544.0,0.005]
[1727794358744,5.07713371,2544.6,2544.0,0.005]
[1727794358945,3.93066,2544.1,2544.0,0.005]
[1727794359151,3.93066,2544.1,2543.2,0.15175023]
[1727794359152,3.93099,2543.9,2543.2,0.15175023]
[1727794359364,8.46309,2543.3,2543.2,0.15175023]
[1727794359555,3.9336,2542.2,2542.0,0.00546002]
[1727794359951,3.93391,2542.0,2541.9,0.3135625]
[1727794360149,12.01104371,2542.0,2541.9,0.3135625]
[1727794360500,12.01104371,2542.0,2540.3,3.93654]
[1727794360501,3.93486,2541.4,2540.3,3.93654]
[1727794360682,3.0,2541.9,2540.6,3.93595]
[1727794360683,3.93438,2541.7,2540.6,3.93595]
[1727794360884,3.93365,2542.2,2540.9,3.93553]
[1727794361044,5.07713371,2542.4,2540.5,1.5784]
[1727794361244,1.3795,2542.6,2540.5,1.5784]
[1727794361245,1.3795,2542.6,2540.6,3.93597]
[1727794361445,8.07713371,2542.4,2540.5,1.5784]
[1727794361693,5.07713371,2542.7,2540.6,0.551477]
[1727794361997,3.93405,2542.0,2540.9,3.93554]
[1727794362297,3.9322,2543.2,2540.7,0.0786962]
[1727794362298,0.41097391,2543.4,2541.2,1.5396]
[1727794362594,5.07713371,2542.6,2541.3,3.93493]
[1727794362744,5.07713371,2542.6,2541.6,3.93441]
[1727794362943,3.9325,2543.0,2541.2,1.5396]
[1727794363146,9.00963371,2543.0,2542.0,3.9339]
[1727794363560,5.07713371,2542.6,2541.2,1.5396]
[1727794363765,3.93343,2542.4,2541.3,3.93496]
[1727794364085,3.93258,2542.9,2541.3,0.940984]
[1727794364086,1.3795,2542.9,2541.3,0.940984]
[1727794364394,1.3795,2542.9,2540.5,3.93614]
[1727794364395,3.93317,2542.5,2541.4,5.43261]
[1727794364575,3.93293,2542.7,2541.5,3.93456]
[1727794364748,3.93237,2543.0,2541.9,3.93405]
[1727794364948,3.9311,2543.9,2542.9,3.93248]
[1727794365203,3.9307,2544.1,2543.1,3.93217]
[1727794365493,3.93041,2544.3,2543.0,1.4706]
[1727794365648,3.93081,2544.1,2543.1,0.55]
[1727794365845,5.07713371,2544.9,2543.2,4.13404]
[1727794366146,3.9302,2544.4,2543.3,0.55]
[1727794366348,3.93055,2544.2,2543.4,3.93171]
[1727794366580,3.93024,2544.4,2543.3,0.55]
[1727794366785,3.93036,2544.3,2543.1,0.55]
[1727794366961,5.07713371,2545.6,2543.5,1.5802]
[1727794367166,5.07713371,2545.6,2542.4,3.0]
[1727794367167,3.93129,2543.7,2542.9,1.579]
[1727794367363,3.93201,2543.3,2542.9,1.579]
[1727794367595,3.93132,2543.7,2542.9,1.579]
[1727794367754,3.93108,2543.9,2543.0,3.93221]
[1727794367948,3.93064,2544.2,2543.0,0.551121]
[1727794368200,3.93069,2544.1,2543.3,3.93189]
[1727794368495,3.93069,2544.1,2542.9,1.579]
[1727794368496,3.93067,2544.1,2542.9,1.579]
[1727794368649,3.93067,2544.1,2543.2,3.93205]
[1727794368845,1.3795,2544.9,2542.9,1.579]
[1727794368846,3.93038,2544.3,2543.1,0.55]
[1727794369159,3.92947,2544.9,2543.3,0.55]
[1727794369463,5.30828,2545.4,2544.1,1.4907]
[1727794369464,1.3795,2545.4,2544.1,1.4907]
[1727794369650,3.92919,2545.1,2544.1,1.4907]
[1727794369850,5.07713371,2545.3,2544.1,1.4907]
[1727794369851,5.6436411,2545.3,2544.1,1.4907]
[1727794370104,0.56650739,2545.3,2544.1,1.4907]
[1727794370270,1.575212,2546.3,2544.2,2.29354456]
[1727794370271,3.92727,2546.3,2544.2,2.29354456]
[1727794370475,9.00533371,2545.7,2544.7,0.55]
[1727794370793,3.92908,2545.2,2543.4,1.4921]
[1727794370993,1.3795,2545.5,2543.4,1.4921]
[1727794371395,3.92964,2544.8,2543.8,3.93112]
[1727794371599,3.92915,2545.1,2543.9,0.02373064]
[1727794371899,5.07713371,2545.6,2544.2,1.5344]
[1727794372066,3.92868,2545.4,2544.5,3.93]
[1727794372269,3.92868,2545.4,2544.2,1.5344]
[1727794372270,3.92868,2545.4,2544.2,5.46488]
[1727794372562,3.92823,2545.7,2544.6,3.92988]
[1727794372760,3.92823,2545.7,2544.5,3.92998]
[1727794372962,3.92856,2545.5,2544.3,0.55]
[1727794373162,6.45663371,2546.0,2544.2,5.4648]
[1727794373163,3.9282,2545.7,2544.2,5.4648]
[1727794373371,3.92837,2545.6,2544.5,3.93004]
[1727794373591,9.45663371,2546.0,2544.5,3.93004]
[1727794373592,3.92855,2545.5,2544.5,3.93004]
[1727794373951,3.92855,2545.5,2544.4,3.93014]
[1727794374150,3.92819,2545.7,2544.2,5.46489]
[1727794374151,3.92835,2545.6,2544.3,4.48032]
[1727794374365,6.92789,2545.9,2544.3,0.55]
[1727794374366,3.92789,2545.9,2544.3,0.55]
[1727794374567,3.0,2545.9,2544.3,0.55]
[1727794374802,3.0,2545.9,2544.8,3.92957]
[1727794375002,3.92759,2546.1,2545.0,1.6153]
[1727794375159,3.92778,2546.0,2545.0,1.6153]
[1727794375362,3.92775,2546.0,2545.0,1.6153]
[1727794375668,3.92851,2545.5,2544.5,5.53152]
[1727794375897,5.07713371,2546.4,2544.5,5.53152]
[1727794375898,3.92821,2545.7,2544.5,5.53152]
[1727794376099,3.92821,2545.7,2544.6,3.92988]
[1727794376302,3.92819,2545.7,2544.6,3.92988]
[1727794376501,3.92789,2545.9,2544.5,1.6015]
[1727794376685,1.4883,2546.5,2544.5,1.6015]
[1727794376857,3.92856,2545.5,2544.5,1.6015]
[1727794377206,3.92892,2545.3,2544.5,1.6015]
[1727794377500,3.9285,2545.5,2544.5,1.6015]
[1727794377702,3.0,2546.0,2544.5,1.6015]
[1727794377857,6.24704052,2547.2,2544.5,1.6015]
[1727794377858,3.0,2545.8,2544.5,1.6015]
[1727794378282,3.9284,2545.6,2544.5,1.6015]
[1727794378508,3.0,2545.8,2544.6,3.92988]
[1727794378509,3.92853,2545.5,2544.6,3.92988]
[1727794378709,3.92868,2545.4,2544.5,5.53152]
[1727794378918,3.0,2545.3,2543.9,1.5311]
[1727794379133,3.92928,2545.0,2544.1,3.9306]
[1727794379336,3.92827,2545.7,2544.1,3.9306]
[1727794379337,0.38173756,2546.5,2546.1,3.92751]
[1727794379491,3.92529,2547.6,2546.6,3.92668]
[1727794379692,1.4883,2547.9,2546.7,0.5597464]
[1727794379693,3.92555,2547.5,2546.7,0.5597464]
[1727794379897,3.92527,2547.6,2546.7,0.5597464]
[1727794380192,3.92527,2547.6,2546.6,3.92665]
[1727794380392,3.92497,2547.8,2546.9,3.92634]
[1727794380628,3.92497,2547.8,2546.5,0.07843757]
[1727794380629,3.92558,2547.4,2546.5,3.9268]
[1727794380828,3.92558,2547.4,2546.4,5.07713371]
[1727794380829,3.92558,2547.4,2546.6,3.92679]
[1727794381012,3.92558,2547.4,2546.4,3.92708]
[1727794381013,3.92583,2547.3,2546.4,3.92708]
[1727794381208,3.92502,2547.8,2546.4,3.92708]
[1727794381416,3.92572,2547.3,2546.5,3.9268]
[1727794381636,3.92572,2547.3,2546.3,3.92725]
[1727794381813,3.92604,2547.1,2546.3,3.92725]
[1727794382192,1.6024,2547.1,2545.7,3.92805]
[1727794382394,3.9273,2546.3,2545.3,3.92871]
[1727794382693,5.07713371,2546.8,2545.3,3.92871]
[1727794382694,3.92693,2546.6,2545.6,3.92828]
[1727794382893,3.92693,2546.6,2545.7,3.92817]
[1727794383090,3.92693,2546.6,2545.8,3.928]
[1727794383298,3.92551,2547.5,2546.2,3.92739]
[1727794383496,1.6124,2547.9,2546.8,3.92648]
[1727794383497,3.92537,2547.6,2546.8,3.92648]
[1727794383799,3.92537,2547.6,2546.9,3.92634]
[1727794383996,3.92537,2547.6,2546.8,3.92648]
[1727794384298,3.925,2547.8,2546.8,3.92648]
[1727794384997,3.925,2547.8,2546.3,5.07713371]
[1727794384998,3.92515,2547.7,2546.7,3.92652]
[1727794385194,1.6234,2548.3,2546.9,3.92633]
[1727794385195,3.92507,2547.8,2546.9,3.92633]
[1727794385698,1.6234,2548.3,2546.8,1.5426]
[1727794386048,3.92551,2547.5,2546.8,1.5426]
[1727794386396,5.07713371,2548.4,2546.8,1.5426]
[1727794386397,1.52,2549.2,2547.8,3.9249]
[1727794386625,1.52,2549.2,2547.7,3.92508]
[1727794386626,3.92361,2548.7,2547.7,3.92508]
[1727794386843,3.92357,2548.7,2547.9,0.07849381]
[1727794387009,3.92331,2548.9,2548.0,3.92455]
[1727794387192,0.5017,2549.5,2548.1,1.6332]
[1727794387396,0.5017,2549.5,2548.2,3.92426]
[1727794387612,0.5017,2549.5,2548.1,1.6332]
[1727794387613,3.92297,2549.1,2548.1,1.6332]
[1727794387847,0.5017,2549.5,2548.3,3.92417]
[1727794388047,0.5017,2549.5,2548.1,1.6332]
[1727794388048,4.42406,2549.5,2548.4,3.92396]
[1727794388357,3.92326,2548.9,2548.1,1.6332]
[1727794388676,0.5017,2549.5,2548.1,1.6332]
[1727794388677,3.92352,2548.8,2548.1,1.6332]
[1727794388995,3.92317,2549.0,2548.2,3.92431]
[1727794389235,3.92317,2549.0,2548.1,5.55754]
[1727794389236,3.92313,2549.0,2548.1,5.55754]
[1727794389441,3.92279,2549.3,2548.1,5.55754]
[1727794389442,3.92279,2549.3,2548.3,3.92418]
[1727794389598,3.92279,2549.3,2548.4,3.92388]
[1727794389947,3.9228,2549.2,2548.4,3.92401]
[1727794390393,0.5017,2549.5,2548.3,3.92418]
[1727794390595,0.5017,2549.5,2548.1,1.6332]
[1727794390905,4.42409,2549.5,2548.3,3.92418]
[1727794391126,0.5017,2549.5,2548.7,3.92355]
[1727794391532,0.5017,2549.5,2548.9,3.92322]
[1727794391741,0.5017,2549.5,2549.1,3.9229]
[1727794391926,0.5017,2549.5,2549.0,1.5805]